[Event "13th Palmanova Festival A 2024"]
[Site "Palmanova"]
[Date "2024.12.29"]
[Round "4.8"]
[White "Hovhannisyan, Mher"]
[Black "Adharsh K"]
[Result "1/2-1/2"]
[ECO "B22"]
[WhiteElo "2397"]
[BlackElo "2235"]
[Annotator "TA"]
[PlyCount "38"]
[EventDate "2024.12.27"]
[EventCountry "ITA"]
[SourceTitle "playchess.com"]
[Source "ChessBase"]
[SourceQuality "1"]
[TimeControl "6000+30"]

{[%evp 19,38,16,12,19,11,18,18,5,0,0,0,1,0,-38,-29,-27,-12,-29,0,-4,0]} 1. e4 {[%emt 0:02:26]} c5 {[%emt 0:01:37]} 2. c3 {[%emt 0:00:04]} d5 {[%emt 0:00:51]} 3. exd5 {[%emt 0:00:10]} Qxd5 {[%emt 0:00:05]} 4. d4 {[%emt 0:00:07]} Nf6 {[%emt 0:00:07]} 5. Nf3 {[%emt 0:00:06]} Nc6 {[%emt 0:00:08]} 6. Be2 {[%emt 0:01:52]} e6 {[%emt 0:05:37]} 7. O-O {[%emt 0:00:33]} Be7 {[%emt 0:01:43]} 8. c4 {[%emt 0:00:58]} Qd8 {[%emt 0:01:11]} 9. dxc5 {[%emt 0:00:08]} O-O {[%emt 0:10:24]} 10. Nc3 {[%emt 0:00:30]} Bxc5 {[%emt 0:03:46]} 11. a3 {[%emt 0:01:26]} b6 {[%emt 0:06:07]} 12. b4 {[%emt 0:02:57]} Be7 {[%emt 0:00:03]} 13. Qc2 {[%emt 0:06:57]} Bb7 {[%emt 0:04:11]} 14. Bb2 {[%emt 0:09:13]} Qc7 {[%emt 0:04:04]} 15. Rfd1 {[%emt 0:14:20]} Rad8 {[%emt 0:00:21]} 16. g3 {[%emt 0:14:54]} h6 {[%emt 0:07:33]} 17. Nb5 {[%emt 0:07:45]} Qb8 {[%emt 0:00:54]} 18. Nbd4 {[%emt 0:11:08]} Qc7 {[%emt 0:03:29]} 19. Nb5 {[%emt 0:07:18]} Qb8 {[%emt 0:00:38]} 1/2-1/2

[Event "13th Palmanova Festival A 2024"]
[Site "Palmanova"]
[Date "2024.12.29"]
[Round "4.9"]
[White "Lekic, Dusan"]
[Black "Domalchuk-Jonasson, Aleksandr"]
[Result "1/2-1/2"]
[ECO "A50"]
[WhiteElo "2287"]
[BlackElo "2377"]
[Annotator "TA"]
[PlyCount "39"]
[EventDate "2024.12.27"]
[EventCountry "ITA"]
[SourceTitle "playchess.com"]
[Source "ChessBase"]
[SourceQuality "1"]
[TimeControl "6000+30"]

{[%evp 11,39,1,8,19,4,13,16,10,14,12,8,0,0,0,0,0,0,0,8,0,0,0,22,14,63,52,58,62,63,55]} 1. d4 {[%emt 0:05:04][%cal Bd2d4,Bd4d5][%mdl 32]} e6 {[%emt 0:09:48]} 2. c4 {[%emt 0:00:24]} b6 {[%emt 0:00:17]} 3. Nc3 {[%emt 0:01:05]} Bb7 {[%emt 0:00:33]} 4. a3 {[%emt 0:03:57]} Nf6 {[%emt 0:00:36]} 5. d5 {[%emt 0:00:53]} Bd6 {[%emt 0:03:22]} 6. Nf3 {[%emt 0:01:27]} O-O {[%emt 0:00:19]} 7. g3 {[%emt 0:00:21]} c6 {[%emt 0:05:30][%cal Rc6d5]} 8. Bg5 {[%emt 0:02:03]} exd5 {[%emt 0:03:33]} 9. cxd5 {[%emt 0:00:23] The position is equal.} cxd5 {[%emt 0:09:24]} 10. Bg2 {[%emt 0:03:24]} Na6 {[%emt 0:01:02]} 11. Nxd5 {[%emt 0:22:27]} Bxd5 {[%emt 0:01:15]} 12. Bxf6 {[%emt 0:00:07]} Qxf6 {[%emt 0:00:21]} 13. Qxd5 {[%emt 0:00:07]} Qxb2 {[%emt 0:16:41]} 14. O-O {[%emt 0:00:10]} Qf6 {[%emt 0:07:10]} 15. Rfd1 {[%emt 0:07:03]} Be7 {[%emt 0:00:48]} 16. Nd4 {[%emt 0:09:27][%cal Od5c4]} Bc5 {[%emt 0:08:08] Black is weak on the light squares} 17. e3 $36 {[%emt 0:02:56][%mdl 3072] White has compensation. White has some pressure. Active counter play!} (17. Qxd7 $2 {is the wrong capture.} Rad8 18. Qxa7 Bxd4 $19) 17... Rad8 {[%emt 0:02:47]} (17... Bxd4 $11 {is more appropriate.} 18. Qxd4 (18. exd4 Rae8 $14) 18... Qxd4 19. Rxd4 d5 20. Bxd5 (20. Rxd5 Nc5 $11) 20... Rad8) 18. Qb7 {[%emt 0:05:52][%csl LRa6,LRa7] White is slightly better.} Nb8 {[%emt 0:00:13]} 19. Nb3 {[%emt 0:02:48][%cal Ob3c5]} Be7 {[%emt 0:02:07]} 20. Qxa7 {[%emt 0:15:42] Weighted Error Value: White=0.03 (flawless) /Black=0.08 (flawless) .  Mistake:       	---       	Black=1      OK:         	White=8     	Black=4      Best:        	White=1     	Black=1} 1/2-1/2

[Event "13th Palmanova Festival A 2024"]
[Site "Palmanova"]
[Date "2024.12.29"]
[Round "4.10"]
[White "Solomon, Kenny"]
[Black "Kalosha, Zhiulien Oleksii"]
[Result "1/2-1/2"]
[ECO "E09"]
[WhiteElo "2277"]
[BlackElo "2306"]
[Annotator "RC"]
[PlyCount "140"]
[EventDate "2024.12.27"]
[EventCountry "ITA"]
[SourceTitle "playchess.com"]
[Source "ChessBase"]
[SourceQuality "1"]
[TimeControl "6000+30"]

1. d4 {[%emt 0:00:46]} d5 {[%emt 0:02:35]} 2. Nf3 {[%emt 0:00:58]} e6 {[%emt 0:00:13]} 3. c4 {[%emt 0:00:22]} c6 {[%emt 0:00:18]} 4. Nbd2 {[%emt 0:00:25]} Nf6 {[%emt 0:02:50]} 5. g3 {[%emt 0:00:06]} b6 {[%emt 0:00:27]} 6. Bg2 {[%emt 0:00:28]} Bb7 {[%emt 0:00:17]} 7. O-O {[%emt 0:00:34]} Nbd7 {[%emt 0:00:10]} 8. b3 {[%emt 0:00:55]} Be7 {[%emt 0:00:51]} 9. Bb2 {[%emt 0:00:05]} O-O {[%emt 0:00:19]} 10. Qc2 {[%emt 0:06:12]} c5 {[%emt 0:05:01]} 11. dxc5 {[%emt 0:03:24]} Nxc5 {[%emt 0:04:12]} 12. Rad1 {[%emt 0:04:13]} Rc8 {[%emt 0:03:46]} 13. Qb1 {[%emt 0:03:42]} h6 {[%emt 0:04:51]} 14. Qa1 {[%emt 0:16:40]} Qe8 {[%emt 0:08:20]} 15. cxd5 {[%emt 0:13:39]} Bxd5 {[%emt 0:00:57]} 16. Rc1 {[%emt 0:00:05]} Qb5 {[%emt 0:06:40]} 17. Rfd1 {[%emt 0:20:16]} Qa6 {[%emt 0:02:23]} 18. Bf1 {[%emt 0:05:04]} Qb7 {[%emt 0:00:52]} 19. Ne5 {[%emt 0:01:12]} Rfd8 {[%emt 0:10:44]} 20. Ndf3 {[%emt 0:00:28]} a5 {[%emt 0:05:22]} 21. Nd4 {[%emt 0:04:52]} a4 {[%emt 0:10:18]} 22. b4 {[%emt 0:00:15]} Ncd7 {[%emt 0:01:27]} 23. Nxd7 {[%emt 0:05:18]} Rxd7 {[%emt 0:02:44]} 24. Rxc8+ {[%emt 0:01:40]} Qxc8 {[%emt 0:00:07]} 25. Rc1 {[%emt 0:01:19]} Rc7 {[%emt 0:03:30]} 26. Rxc7 {[%emt 0:00:07]} Qxc7 {[%emt 0:00:05]} 27. a3 {[%emt 0:00:48]} Ne4 {[%emt 0:04:10]} 28. Qd1 {[%emt 0:08:39]} Qd7 {[%emt 0:01:49]} 29. Nf3 {[%emt 0:06:07]} f6 {[%emt 0:02:54]} 30. Bh3 {[%emt 0:02:35]} b5 {[%emt 0:02:36]} 31. Qd3 {[%emt 0:00:32]} Bd8 {[%emt 0:01:56]} 32. Nd4 {[%emt 0:01:32]} Nd6 {[%emt 0:07:08]} 33. Bc1 {[%emt 0:01:40]} Bb6 {[%emt 0:01:22]} 34. Be3 {[%emt 0:01:31]} Nc4 {[%emt 0:02:45]} 35. Nc2 {[%emt 0:00:01]} Nxe3 {[%emt 0:05:54]} 36. Nxe3 {[%emt 0:00:01]} Bc6 {[%emt 0:00:09]} 37. Qxd7 {[%emt 0:01:15]} Bxd7 {[%emt 0:00:06]} 38. Nc2 {[%emt 0:00:38]} Kf7 {[%emt 0:00:27]} 39. Kf1 {[%emt 0:00:27]} Ke7 {[%emt 0:00:10]} 40. Ke1 {[%emt 0:00:48]} Kd6 {[%emt 0:00:22]} 41. Bg2 {[%emt 0:00:00]} Be8 {[%emt 0:00:00]} 42. e3 {[%emt 0:00:00]} f5 {[%emt 0:00:00]} 43. Kd2 {[%emt 0:00:00]} e5 {[%emt 0:00:00]} 44. Kc3 {[%emt 0:00:00]} e4 {[%emt 0:00:00]} 45. Nd4 {[%emt 0:00:00]} Ke5 {[%emt 0:00:00]} 46. Bf1 {[%emt 0:00:00]} Bxd4+ {[%emt 0:00:00]} 47. exd4+ {[%emt 0:00:00]} Kd5 {[%emt 0:00:00]} 48. Be2 {[%emt 0:00:00]} g5 {[%emt 0:00:00]} 49. f4 {[%emt 0:00:00]} exf3 {[%emt 0:00:00]} 50. Bxf3+ {[%emt 0:00:00]} Kd6 {[%emt 0:00:00]} 51. Kd3 {[%emt 0:00:00]} Bc6 {[%emt 0:00:00]} 52. Be2 {[%emt 0:00:13]} f4 {[%emt 0:00:00]} 53. gxf4 {[%emt 0:00:01]} gxf4 {[%emt 0:00:00]} 54. Bh5 {[%emt 0:00:03]} Bg2 {[%emt 0:00:00]} 55. Bf7 {[%emt 0:00:51]} Ke7 {[%emt 0:00:44]} 56. Bg6 {[%emt 0:02:32]} Ke6 {[%emt 0:01:39]} 57. Bh7 {[%emt 0:03:12]} Bd5 {[%emt 0:02:55]} 58. Bg8+ {[%emt 0:00:04]} Kd6 {[%emt 0:00:06]} 59. Bh7 {[%emt 0:00:04]} Ba2 {[%emt 0:01:02]} 60. Kd2 {[%emt 0:02:21]} Bc4 {[%emt 0:01:34]} 61. Be4 {[%emt 0:00:06]} Ke6 {[%emt 0:02:47]} 62. Bf3 {[%emt 0:00:57]} Kf5 {[%emt 0:01:48]} 63. Ke1 {[%emt 0:00:52]} Bd3 {[%emt 0:02:25]} 64. Kf2 {[%emt 0:00:01]} Be4 {[%emt 0:00:45]} 65. h3 {[%emt 0:00:16]} Bd3 {[%emt 0:00:38]} 66. Bc6 {[%emt 0:01:22]} Bc2 {[%emt 0:04:13]} 67. Kf3 {[%emt 0:00:22]} Bd1+ {[%emt 0:00:09]} 68. Kf2 {[%emt 0:00:01]} Bc2 {[%emt 0:00:14]} 69. Kf3 {[%emt 0:00:52]} Bd1+ {[%emt 0:00:07]} 70. Kf2 {[%emt 0:00:03]} Bc2 {[%emt 0:00:07]} 1/2-1/2

[Event "13th Palmanova Festival A 2024"]
[Site "Palmanova"]
[Date "2024.12.29"]
[Round "4.11"]
[White "Gregoric, Andraz"]
[Black "Javornik, Nik"]
[Result "1/2-1/2"]
[ECO "B30"]
[WhiteElo "2265"]
[BlackElo "2300"]
[Annotator "RC"]
[PlyCount "97"]
[EventDate "2024.12.27"]
[EventCountry "ITA"]
[SourceTitle "playchess.com"]
[Source "ChessBase"]
[SourceQuality "1"]
[TimeControl "6000+30"]

1. e4 {[%emt 0:00:01]} c5 {[%emt 0:02:57]} 2. Nf3 {[%emt 0:00:14]} Nc6 {[%emt 0:00:17]} 3. Bb5 {[%emt 0:00:38]} e5 {[%emt 0:00:14]} 4. O-O {[%emt 0:04:55]} Bd6 {[%emt 0:00:03]} 5. Bxc6 {[%emt 0:02:49]} dxc6 {[%emt 0:00:13]} 6. a4 {[%emt 0:01:32]} g5 {[%emt 0:10:19]} 7. d3 {[%emt 0:13:36]} g4 {[%emt 0:00:57]} 8. Nfd2 {[%emt 0:00:26]} Ne7 {[%emt 0:04:48]} 9. Nc4 {[%emt 0:01:02]} Be6 {[%emt 0:02:36]} 10. Nba3 {[%emt 0:03:48]} Bc7 {[%emt 0:01:52]} 11. Be3 {[%emt 0:03:36]} b6 {[%emt 0:00:56]} 12. Qd2 {[%emt 0:03:11]} Ng6 {[%emt 0:05:10]} 13. Bg5 {[%emt 0:13:22]} f6 {[%emt 0:03:12]} 14. Bh6 {[%emt 0:00:04]} Rg8 {[%emt 0:05:00]} 15. f3 {[%emt 0:13:20]} Qe7 {[%emt 0:20:51]} 16. Ne3 {[%emt 0:04:04]} gxf3 {[%emt 0:01:48]} 17. Rxf3 {[%emt 0:00:35]} O-O-O {[%emt 0:01:28]} 18. Qf2 {[%emt 0:09:55]} Nf4 {[%emt 0:01:34]} 19. Kh1 {[%emt 0:05:06]} Rg6 {[%emt 0:02:24]} 20. Qh4 {[%emt 0:00:04]} Rdg8 {[%emt 0:00:45]} 21. Raf1 {[%emt 0:11:24]} Kb7 {[%emt 0:09:23]} 22. g3 {[%emt 0:02:49]} Rg4 {[%emt 0:00:43]} 23. Nxg4 {[%emt 0:00:03]} Rxg4 {[%emt 0:00:04]} 24. Bf8 {[%emt 0:00:27]} Qxf8 {[%emt 0:03:36]} 25. Qxh7 {[%emt 0:00:03]} Rg7 {[%emt 0:00:38]} 26. Qh4 {[%emt 0:01:09]} Bg4 {[%emt 0:02:18]} 27. gxf4 {[%emt 0:04:24]} Bxf3+ {[%emt 0:00:01]} 28. Rxf3 {[%emt 0:11:53]} exf4 29. Nc4 {[%emt 0:00:00]} Qg8 {[%emt 0:04:16]} 30. Qf2 {[%emt 0:00:00]} Qh7 {[%emt 0:00:48]} 31. Qf1 {[%emt 0:00:00]} Rg3 {[%emt 0:02:08]} 32. Nd2 {[%emt 0:00:00]} Qh5 {[%emt 0:00:30]} 33. Rxg3 {[%emt 0:00:00]} fxg3 {[%emt 0:00:04]} 34. h3 {[%emt 0:00:00]} a6 {[%emt 0:06:59]} 35. Kg2 {[%emt 0:00:00]} b5 {[%emt 0:00:46]} 36. Qf3 {[%emt 0:01:21]} Qg5 {[%emt 0:00:33]} 37. Qe2 {[%emt 0:00:35]} Qe5 {[%emt 0:02:44]} 38. axb5 {[%emt 0:01:07]} axb5 {[%emt 0:00:04]} 39. b3 {[%emt 0:00:46]} Qb2 {[%emt 0:12:03]} 40. Nf3 {[%emt 0:00:31]} Bf4 {[%emt 0:00:07]} 41. Qd1 {[%emt 0:01:08]} Kb6 {[%emt 0:01:20]} 42. h4 {[%emt 0:00:00]} Qc3 {[%emt 0:00:00]} 43. Qe2 {[%emt 0:00:00]} Ka5 {[%emt 0:00:00]} 44. h5 {[%emt 0:00:00]} Kb4 {[%emt 0:00:00]} 45. Qe1 {[%emt 0:00:00]} Qxe1 {[%emt 0:00:00]} 46. Nxe1 {[%emt 0:00:00]} Kc3 {[%emt 0:00:00]} 47. Kf3 {[%emt 0:00:00]} Bd2 {[%emt 0:00:00]} 48. Ke2 {[%emt 0:00:00]} Bh6 {[%emt 0:00:00]} 49. Kd1 {[%emt 0:00:00]} 1/2-1/2

[Event "13th Palmanova Festival A 2024"]
[Site "Palmanova"]
[Date "2024.12.29"]
[Round "4.12"]
[White "Rossi, Gabriele Valerio"]
[Black "Skawinski, Arkadiusz"]
[Result "1/2-1/2"]
[ECO "E04"]
[WhiteElo "2007"]
[BlackElo "2330"]
[Annotator "TA"]
[PlyCount "26"]
[EventDate "2024.12.27"]
[EventCountry "ITA"]
[SourceTitle "playchess.com"]
[Source "ChessBase"]
[SourceQuality "1"]
[TimeControl "6000+30"]

{[%evp 16,26,20,12,67,65,97,0,0,0,0,0,0]} 1. d4 {[%emt 0:00:00]} d5 {[%emt 0:09:32]} 2. c4 {[%emt 0:00:05]} e6 {[%emt 0:00:18]} 3. g3 {[%emt 0:00:05]} Nf6 {[%emt 0:00:47]} 4. Bg2 {[%emt 0:00:04]} dxc4 {[%emt 0:03:12]} 5. Nf3 {[%emt 0:00:12]} c5 {[%emt 0:02:05]} 6. O-O {[%emt 0:08:16]} Nc6 {[%emt 0:02:45]} 7. dxc5 {[%emt 0:00:39]} Qxd1 {[%emt 0:02:53]} 8. Rxd1 {[%emt 0:00:01]} Bxc5 {[%emt 0:00:11]} 9. Nbd2 {[%emt 0:00:40]} Ke7 {[%emt 0:37:44]} (9... c3 $11 10. bxc3 O-O) 10. Nxc4 $14 {[%emt 0:00:15]} Bd7 {[%emt 0:00:09]} 11. Be3 {[%emt 0:16:14]} ({White should play} 11. Nfe5 $16) 11... Bxe3 $11 {[%emt 0:00:34]} 12. Nxe3 {[%emt 0:02:22]} Rhd8 {[%emt 0:02:30]} 13. Nc4 {[%emt 0:14:49]} Be8 {[%emt 0:00:04]} 1/2-1/2

[Event "13th Palmanova Festival A 2024"]
[Site "Palmanova"]
[Date "2024.12.29"]
[Round "4.13"]
[White "Stankovic, Milos"]
[Black "Tejaswini G"]
[Result "1/2-1/2"]
[ECO "D00"]
[WhiteElo "2462"]
[BlackElo "2211"]
[Annotator "TA"]
[PlyCount "70"]
[EventDate "2024.12.27"]
[EventCountry "ITA"]
[SourceTitle "playchess.com"]
[Source "ChessBase"]
[SourceQuality "1"]
[TimeControl "6000+30"]

{[%evp 12,70,9,0,0,0,11,14,21,17,69,0,0,0,23,38,30,20,16,19,26,41,47,39,36,10,19,0,4,-93,-94,-79,-10,-68,-65,-138,0,0,0,0,0,-28,-62,-197,-203,-190,-157,-147,-151,-140,-101,-108,-97,-111,0,-94,0,0,0,-62,-63]} 1. d4 {[%emt 0:06:10]} Nf6 {[%emt 0:00:21]} 2. Bg5 {[%emt 0:01:32]} g6 {[%emt 0:00:28]} 3. Bxf6 {[%emt 0:00:31]} exf6 {[%emt 0:00:03]} 4. e3 {[%emt 0:00:26]} Bg7 {[%emt 0:00:26]} 5. c4 {[%emt 0:02:00]} d5 {[%emt 0:02:06]} 6. Nc3 {[%emt 0:01:00]} dxc4 {[%emt 0:00:38]} 7. Bxc4 {[%emt 0:00:32]} O-O {[%emt 0:00:53]} 8. Nge2 {[%emt 0:00:26]} Nd7 {[%emt 0:24:38]} 9. h4 {[%emt 0:07:02][%cal Bh2h4,Bh4h5][%mdl 32]} c5 {[%emt 0:11:06] The position is equal.} 10. h5 {[%emt 0:07:19]} cxd4 {[%emt 0:00:40]} (10... f5 $11) 11. Qxd4 {[%emt 0:03:54] White is more active.} (11. hxg6 $14 hxg6 12. Qxd4 (12. Nxd4 f5 $11)) 11... f5 $11 {[%emt 0:06:40]} 12. Qf4 {[%emt 0:03:40]} g5 {[%emt 0:12:18]} 13. Qxf5 {[%emt 0:08:43]} Ne5 {[%emt 0:01:03]} 14. Qe4 {[%emt 0:00:21] Strongly threatening Rd1.} Nxc4 {[%emt 0:01:49]} 15. Qxc4 {[%emt 0:02:47]} Be6 {[%emt 0:00:25]} 16. Qb4 {[%emt 0:02:50]} h6 {[%emt 0:05:56]} 17. Rd1 {[%emt 0:06:11]} Qc8 {[%emt 0:00:48]} 18. Nd4 {[%emt 0:15:19]} Bc4 {[%emt 0:09:38]} 19. Ne4 {[%emt 0:10:03]} Bd5 {[%emt 0:07:53] A strong pair of Bishops.} 20. Ng3 {[%emt 0:06:35]} (20. Qe7 $11 Kh8 (20... Bxa2 21. O-O $14) 21. Nxg5) 20... Bxg2 $17 {[%emt 0:03:06]} (20... Bxa2 21. Ngf5 Qc4 22. Qa5 $14 (22. Qxb7 Rab8 $15)) 21. Ngf5 {[%emt 0:00:45] [#] Ne7+ is the strong threat.} Qc7 {[%emt 0:02:03]} (21... Bxh1 22. Ne7+ Kh7 23. Nxc8 Raxc8 24. Ke2 $18) (21... Kh7 $1 $17 22. Rg1 Bxd4 23. Qxd4 Qxf5 24. Rxg2 Rad8) 22. Rg1 {[%emt 0:02:26]} (22. Qe7 $1 $11 Qxe7 23. Nxe7+ Kh7 24. Rh2) 22... Qh2 $36 {[%emt 0:03:19][%csl LRg1,LRh5][%mdl 2048] Black is more active.} 23. Ne2 {[%emt 0:01:17]} (23. Rxg2 $15 Qxg2 (23... Qh1+ 24. Ke2 $11) 24. Nxg7 Kxg7 (24... Qg1+ $2 25. Ke2 $19) 25. Nf5+ Kh7 26. Rd6 Qh1+ 27. Ke2 Qxh5+ 28. f3) 23... Rad8 {[%emt 0:01:26]} (23... Bf3 $17 24. Qc5 Bxe2 (24... Bxb2 $2 25. Nxh6+ Kh8 26. Qxg5 $18) (24... Bxh5 25. Rd6 $17) (24... Qxh5 25. Nxg7 Kxg7 26. Nf4 $17) 25. Nxh6+ Bxh6 26. Rxg5+ Kh8 (26... Bxg5 27. Qxg5+ Kh7 28. Kxe2 $11) 27. Kxe2 Rac8 (27... Bxg5 28. Qxg5 Kh7 29. Rd7 $11) 28. Qe5+ Qxe5 29. Rxe5 Bg7) 24. Rxd8 $1 $11 {[%emt 0:05:24]} Rxd8 {[%emt 0:00:02]} 25. Qe7 {[%emt 0:00:26] Dancing on a razor blade.} Rf8 {[%emt 0:01:08]} 26. Nxg7 {[%emt 0:07:03]} Kxg7 {[%emt 0:01:50]} 27. Qd7 {[%emt 0:01:04] Against Rc8} (27. Kd2 $15) 27... Bf3 $1 $19 {[%emt 0:02:14][%cal Of3e2] White must now prevent ...Bxe2!} 28. Rg3 {[%emt 0:00:32]} Bxe2 {[%emt 0:00:47]} ({Weaker is} 28... Bxh5 29. Rh3 $16 (29. Qxb7 Re8 $17) (29. Qxb7 Re8 $17)) 29. Kxe2 {[%emt 0:00:06]} Qxh5+ {[%emt 0:00:17][%mdl 4096] Endgame. KQR-KQR} 30. Rf3 {[%emt 0:00:05]} Qg6 {[%emt 0:01:27] Wards off e4} 31. Qxb7 {[%emt 0:02:19]} Rd8 {[%emt 0:03:31]} 32. Qb3 {[%emt 0:00:22] Inhibits Qd3+.} h5 {[%emt 0:01:09]} (32... Qa6+ $17 33. Ke1 f6) 33. Kf1 {[%emt 0:01:43] [#]} (33. Qc3+ $1 $11 Kg8 34. Rf6) 33... h4 {[%emt 0:02:05]} (33... Qe6 $1 $17 {...Qxb3 would now be deadly.} 34. Qxe6 fxe6) 34. Qc3+ $1 $11 {[%emt 0:00:22]} Kg8 {[%emt 0:00:32] aiming for ...Qe4.} 35. Qf6 {[%emt 0:00:38]} (35. Qe5 $11) 35... Qxf6 {[%emt 0:01:28] Weighted Error Value: White=0.30/Black=0.24 (precise) .  Mistake:       	White=7     	Black=5      Inaccurate:     	White=2     	---        OK:         	White=9     	Black=5      Best:        	White=3     	Black=5      Strong:       	White=2     	Black=1} 1/2-1/2

[Event "13th Palmanova Festival A 2024"]
[Site "Palmanova"]
[Date "2024.12.29"]
[Round "4.14"]
[White "Mazzini, Mauro"]
[Black "Maglioni, Leonardo"]
[Result "0-1"]
[ECO "B59"]
[WhiteElo "2069"]
[BlackElo "1971"]
[Annotator "NA RC"]
[PlyCount "66"]
[EventDate "2024.12.27"]
[EventCountry "ITA"]
[SourceTitle "playchess.com"]
[Source "ChessBase"]
[SourceQuality "1"]
[TimeControl "6000+30"]

1. e4 {[%emt 0:01:04]} c5 {[%emt 0:00:45]} 2. Nf3 {[%emt 0:00:11]} d6 {[%emt 0:00:04]} 3. d4 {[%emt 0:00:07]} cxd4 {[%emt 0:00:03]} 4. Nxd4 {[%emt 0:00:06]} Nf6 {[%emt 0:00:05]} 5. Nc3 {[%emt 0:00:05]} Nc6 {[%emt 0:00:03]} 6. Be2 {[%emt 0:05:53]} e5 {[%emt 0:00:07]} 7. Nb3 {[%emt 0:01:09]} Be7 {[%emt 0:01:30]} 8. Be3 {[%emt 0:11:25]} O-O {[%emt 0:00:42]} 9. Qd2 {[%emt 0:00:54]} a5 {[%emt 0:00:49]} 10. a3 {[%emt 0:15:00]} a4 {[%emt 0:06:02]} 11. Nc1 {[%emt 0:00:11]} Be6 {[%emt 0:02:01]} 12. N1a2 {[%emt 0:06:29]} d5 {[%emt 0:07:14]} 13. exd5 {[%emt 0:00:23]} Nxd5 {[%emt 0:00:11]} 14. Nxd5 {[%emt 0:00:17]} Qxd5 {[%emt 0:01:01]} 15. Qxd5 {[%emt 0:08:26]} Bxd5 {[%emt 0:00:58]} 16. f3 {[%emt 0:00:10]} Nd4 {[%emt 0:23:27]} 17. Bd3 {[%emt 0:00:52]} Rfc8 {[%emt 0:03:14]} 18. Nc3 {[%emt 0:01:24]} Bc4 {[%emt 0:02:25]} 19. O-O-O {[%emt 0:06:28]} Be6 {[%emt 0:05:12]} 20. Be4 {[%emt 0:10:58]} Rxc3 {[%emt 0:21:46]} 21. Bxd4 {[%emt 0:17:06]} exd4 {[%emt 0:03:06]} 22. bxc3 {[%emt 0:00:45]} Bxa3+ {[%emt 0:10:35]} 23. Kd2 {[%emt 0:00:15]} dxc3+ {[%emt 0:00:17]} 24. Kxc3 {[%emt 0:03:41]} Rc8+ {[%emt 0:01:19]} 25. Kd3 {[%emt 0:05:14]} b5 {[%emt 0:02:02]} 26. Rb1 {[%emt 0:01:32]} Be7 {[%emt 0:06:27]} 27. c3 {[%emt 0:02:16]} f5 {[%emt 0:01:28]} 28. Bb7 {[%emt 0:01:13]} Bc4+ {[%emt 0:02:22]} 29. Kc2 {[%emt 0:01:08]} Rc7 {[%emt 0:00:39]} 30. Ba8 {[%emt 0:06:41]} b4 {[%emt 0:01:01]} 31. Rhd1 {[%emt 0:01:10]} b3+ {[%emt 0:01:12]} 32. Kc1 {[%emt 0:02:32]} a3 {[%emt 0:00:51]} 33. Rd4 {[%emt 0:00:11]} a2 {[%emt 0:01:02]} 0-1